fUSD/lending_fUSD_20240602
["ID","MTS","AMOUNT","RATE_DAILY","PERIOD"]
[328416154,1717371042287,-904.38,0.00031042,4]
[328416155,1717371042297,-167.17887737,0.00031047,7]
[328416156,1717371042306,-617.33,0.00031073,2]
[328416157,1717371042315,-19633.96026482,0.00031074,15]
[328416158,1717371042324,-5881.30390149,0.00031074,15]
[328416159,1717371042334,-500.0,0.00031093,4]
[328416160,1717371042343,-500.0,0.00031093,4]
[328416161,1717371042352,-246.0,0.00031096,5]
[328416162,1717371042363,-150.0,0.00031117,2]
[328416163,1717371042372,-156.30611698,0.00031126,2]
[328416166,1717371042511,-127105.4888751,0.00031128,14]
[328416169,1717371042525,-2867.99063297,0.00031128,14]
[328416173,1717371042534,-500.0,0.00031129,4]
[328416175,1717371042544,-500.0,0.00031129,4]
[328416177,1717371042554,-572.29820025,0.00031129,4]
[328416178,1717371042563,-500.0,0.00031129,4]
[328416179,1717371042573,-500.0,0.00031129,4]
[328416180,1717371042583,-500.0,0.00031129,4]
[328416181,1717371042596,-694.92,0.00031129,4]
[328416182,1717371042606,-500.0,0.00031129,4]
[328416183,1717371042615,-500.0,0.00031129,4]
[328416184,1717371042624,-500.0,0.00031129,4]
[328416185,1717371042634,-798.44,0.00031129,4]
[328416186,1717371042644,-500.0,0.00031129,4]
[328416188,1717371042653,-500.0,0.00031129,4]
[328416190,1717371042664,-1024.48,0.00031129,4]
[328416191,1717371042673,-797.99,0.00031129,4]
[328416194,1717371042683,-763.86,0.00031129,4]
[328416196,1717371042693,-638.9,0.00031129,4]
[328416197,1717371042702,-1096.67,0.00031129,4]
[328416198,1717371042712,-1679.78,0.00031129,4]
[328416199,1717371042721,-500.0,0.00031129,4]
[328416200,1717371042730,-500.0,0.00031129,4]
[328416201,1717371042740,-500.0,0.00031129,4]
[328416202,1717371042749,-500.0,0.00031129,4]
[328416203,1717371042758,-606.79,0.00031129,4]
[328416204,1717371042768,-500.0,0.00031129,4]
[328416205,1717371042777,-537.93,0.00031129,4]
[328416206,1717371042787,-502.06511474,0.00031129,2]
[328416207,1717371042796,-777.28,0.0003113,4]
[328416208,1717371042806,-500.0,0.0003113,4]
[328416209,1717371042815,-500.0,0.0003113,4]
[328416210,1717371042824,-4734.28,0.0003113,4]
[328416211,1717371042834,-500.0,0.0003113,4]
[328416212,1717371042843,-500.0,0.0003113,4]
[328416213,1717371042854,-936.92,0.0003113,4]
[328416214,1717371042864,-5685.91,0.0003113,4]
[328416215,1717371042874,-151.0,0.0003113,7]
[328416216,1717371042883,-756.95,0.0003113,4]
[328416217,1717371042897,-151.0,0.0003113,7]
[328416218,1717371042907,-151.0,0.0003113,7]
[328416219,1717371042917,-971.06,0.0003113,4]
[328416220,1717371042927,-151.0,0.0003113,7]
[328416221,1717371042937,-307.794907,0.0003113,7]
[328416222,1717371042947,-307.794907,0.0003113,7]
[328416223,1717371042956,-599.95,0.0003113,4]
[328416224,1717371042966,-221.380324,0.0003113,7]
[328416225,1717371042976,-221.380324,0.0003113,7]
[328416226,1717371042987,-500.0,0.0003113,4]
[328416227,1717371042996,-151.0,0.0003113,7]
[328416228,1717371043007,-1028.0,0.0003113,4]
[328416229,1717371043016,-152.531254,0.0003113,7]
[328416230,1717371043026,-151.0,0.0003113,7]
[328416231,1717371043036,-152.531254,0.0003113,7]
[328416232,1717371043046,-572.72,0.0003113,4]
[328416233,1717371043056,-151.0,0.0003113,7]
[328416234,1717371043066,-1174.470906,0.0003113,7]
[328416235,1717371043076,-1195.81,0.0003113,4]
[328416236,1717371043086,-1174.470906,0.0003113,7]
[328416237,1717371043096,-641.03,0.0003113,4]
[328416238,1717371043106,-151.0,0.0003113,7]
[328416239,1717371043116,-500.0,0.0003113,4]
[328416240,1717371043126,-1051.95,0.0003113,4]
[328416241,1717371043136,-598.95,0.0003113,4]
[328416242,1717371043145,-965.74,0.0003113,4]
[328416243,1717371043156,-151.0,0.0003113,7]
[328416244,1717371043166,-995.94,0.0003113,4]
[328416245,1717371043176,-626.65,0.0003113,4]
[328416246,1717371043185,-336.737914,0.0003113,7]
[328416247,1717371043196,-336.737914,0.0003113,7]
[328416248,1717371043206,-151.0,0.0003113,7]
[328416249,1717371043216,-151.0,0.0003113,7]
[328416250,1717371043225,-183.125235,0.0003113,7]
[328416251,1717371043235,-500.0,0.0003113,4]
[328416252,1717371043245,-844.41,0.0003113,4]
[328416253,1717371043256,-151.0,0.0003113,7]
[328416254,1717371043266,-640.54,0.0003113,4]
[328416255,1717371043275,-1129.49,0.0003113,4]
[328416256,1717371043284,-1440.55,0.0003113,4]
[328416257,1717371043295,-3069.82,0.0003113,4]
[328416258,1717371043304,-500.0,0.0003113,4]
[328416260,1717371043314,-1934.890911,0.0003113,7]
[328416262,1717371043324,-512.24642652,0.00031131,4]
[328416264,1717371043334,-513.27824028,0.00031131,4]
[328416266,1717371043344,-511.15192947,0.00031131,4]
[328416267,1717371043353,-500.0,0.00031131,4]
[328416269,1717371043363,-510.42499872,0.00031131,4]
[328416271,1717371043372,-500.0,0.00031131,2]
[328416273,1717371043384,-500.0,0.00031131,4]
[328416275,1717371043393,-500.0,0.00031131,4]
[328416277,1717371043402,-500.0,0.00031131,4]
[328416278,1717371043412,-500.0,0.00031131,4]
[328416280,1717371043422,-500.0,0.00031131,4]
[328416282,1717371043432,-500.0,0.00031131,4]
[328416284,1717371043442,-500.0,0.00031131,4]
[328416286,1717371043452,-593.82277094,0.00031131,4]
[328416288,1717371043461,-500.0,0.00031131,4]
[328416290,1717371043471,-881.16,0.00031131,4]
[328416292,1717371043480,-877.71,0.00031131,4]
[328416293,1717371043490,-500.0,0.00031131,4]
[328416295,1717371043499,-500.0,0.00031131,4]
[328416297,1717371043509,-526.86299604,0.00031131,4]
[328416299,1717371043521,-251.08617794,0.00031131,4]
[328416300,1717371043531,-500.0,0.00031131,4]
[328416301,1717371043540,-500.0,0.00031131,4]
[328416302,1717371043550,-640.4,0.00031131,4]
[328416303,1717371043560,-640.75,0.00031131,4]
[328416304,1717371043570,-500.0,0.00031131,4]
[328416305,1717371043579,-20000.0,0.00031131,2]
[328416306,1717371043592,-500.0,0.00031131,4]
[328416307,1717371043601,-500.0,0.00031131,4]
[328416308,1717371043611,-500.0,0.00031131,4]
[328416309,1717371043620,-500.0,0.00031131,4]
[328416310,1717371043631,-500.0,0.00031131,4]
[328416311,1717371043641,-500.0,0.00031131,4]
[328416312,1717371043651,-584.71,0.00031131,4]
[328416313,1717371043660,-334.800936,0.00031131,7]
[328416314,1717371043672,-540.15,0.00031131,4]
[328416315,1717371043682,-334.800936,0.00031131,7]
[328416316,1717371043691,-500.0,0.00031131,4]
[328416317,1717371043701,-500.0,0.00031131,4]
[328416318,1717371043711,-500.0,0.00031131,4]
[328416319,1717371043721,-500.0,0.00031131,4]
[328416320,1717371043730,-500.0,0.00031131,4]
[328416321,1717371043740,-151.0,0.00031131,7]
[328416322,1717371043750,-151.0,0.00031131,7]
[328416323,1717371043761,-561.06090394,0.00031131,4]
[328416324,1717371043771,-500.0,0.00031131,4]
[328416325,1717371043780,-521.50823526,0.00031131,4]
[328416327,1717371043790,-500.0,0.00031131,4]
[328416329,1717371043800,-725.51,0.00031131,4]
[328416331,1717371043810,-223.352464,0.00031131,7]
[328416333,1717371043819,-500.0,0.00031131,4]
[328416335,1717371043829,-514.17040009,0.00031131,4]
[328416337,1717371043839,-693.57,0.00031131,4]
[328416339,1717371043848,-500.0,0.00031131,4]
[328416341,1717371043858,-223.352464,0.00031131,7]
[328416343,1717371043868,-500.0,0.00031131,4]
[328416345,1717371043878,-500.0,0.00031131,4]
[328416347,1717371043888,-500.0,0.00031131,4]
[328416348,1717371043898,-151.0,0.00031131,7]
[328416349,1717371043908,-715.0,0.00031131,4]
[328416350,1717371043917,-698.24,0.00031131,4]
[328416351,1717371043927,-500.0,0.00031131,4]
[328416352,1717371043936,-558.89,0.00031131,4]
[328416353,1717371043946,-507.875795,0.00031131,7]
[328416354,1717371043956,-500.0,0.00031131,4]
[328416355,1717371043965,-507.875795,0.00031131,7]
[328416356,1717371043976,-500.0,0.00031131,4]
[328416357,1717371043985,-727.94,0.00031131,4]
[328416358,1717371043995,-500.0,0.00031131,4]
[328416359,1717371044005,-500.0,0.00031131,4]
[328416360,1717371044014,-500.0,0.00031131,4]
[328416361,1717371044024,-500.0,0.00031131,4]
[328416362,1717371044034,-151.0,0.00031131,7]
[328416363,1717371044044,-369.754307,0.00031131,7]
[328416364,1717371044056,-500.0,0.00031131,4]
[328416365,1717371044066,-151.0,0.00031131,7]
[328416366,1717371044075,-500.0,0.00031131,4]
[328416367,1717371044085,-369.754307,0.00031131,7]
[328416368,1717371044094,-151.0,0.00031131,7]
[328416369,1717371044104,-500.0,0.00031131,4]
[328416370,1717371044113,-151.0,0.00031131,7]
[328416371,1717371044123,-898.02,0.00031131,4]
[328416372,1717371044133,-899.78,0.00031131,4]
[328416373,1717371044143,-151.0,0.00031131,7]
[328416374,1717371044152,-153.20639748,0.00031131,4]
[328416375,1717371044162,-500.0,0.00031131,4]
[328416376,1717371044171,-500.0,0.00031131,4]
[328416377,1717371044181,-500.0,0.00031131,4]
[328416378,1717371044191,-500.0,0.00031131,4]
[328416379,1717371044201,-150.0,0.00031131,4]
[328416380,1717371044210,-500.0,0.00031131,4]
[328416381,1717371044220,-500.0,0.00031131,4]
[328416382,1717371044230,-151.0,0.00031131,7]
[328416383,1717371044239,-151.0,0.00031131,7]
[328416384,1717371044249,-500.0,0.00031131,4]
[328416385,1717371044259,-500.0,0.00031131,4]
[328416386,1717371044269,-151.0,0.00031131,7]
[328416387,1717371044278,-500.0,0.00031131,4]
[328416388,1717371044442,-500.0,0.00031131,4]
[328416389,1717371044456,-536.96750734,0.00031131,4]
[328416390,1717371044466,-542.64,0.00031131,4]
[328416391,1717371044477,-304.17882463,0.00031131,4]
[328416392,1717371044488,-518.75,0.00031131,4]
[328416393,1717371044498,-500.0,0.00031131,4]
[328416394,1717371044509,-1142.42,0.00031131,4]
[328416395,1717371044519,-524.23976002,0.00031131,4]
[328416396,1717371044528,-500.0,0.00031131,4]
[328416397,1717371044539,-1044.317613,0.00031131,7]
[328416398,1717371044548,-500.0,0.00031131,4]
[328416399,1717371044558,-500.0,0.00031131,4]
[328416400,1717371044567,-1044.317613,0.00031131,7]
[328416401,1717371044577,-522.22247617,0.00031131,4]
[328416402,1717371044589,-500.0,0.00031131,4]
[328416403,1717371044599,-500.0,0.00031131,4]
[328416404,1717371044608,-566.15,0.00031131,4]
[328416405,1717371044618,-313.48660459,0.00031131,4]
[328416406,1717371044630,-1123.42,0.00031131,4]
[328416407,1717371044639,-151.0,0.00031131,7]
[328416408,1717371044649,-1085.2,0.00031131,4]
[328416409,1717371044661,-389.242611,0.00031131,7]
[328416410,1717371044670,-1205.63,0.00031131,4]
[328416411,1717371044679,-389.242611,0.00031131,7]
[328416412,1717371044689,-500.0,0.00031131,4]
[328416413,1717371044698,-8789.4,0.00031131,4]
[328416414,1717371044708,-736.38,0.00031131,4]
[328416415,1717371044717,-797.08,0.00031131,4]
[328416416,1717371044726,-5564.67720474,0.00031131,4]
[328416417,1717371044857,-500.0,0.00031129,4]
[328416418,1717371044867,-853.11372,0.00031131,4]
[328416419,1717371045048,-1311.57,0.00030856,4]
[328416420,1717371045057,-506.47608379,0.00030857,4]
[328416421,1717371045068,-1311.57,0.0003113,4]
[328416422,1717371045078,-19728.75907526,0.00031131,4]
[328416423,1717371045087,-151.0,0.00031131,7]
[328416424,1717371045097,-413.159818,0.00031131,7]
[328416425,1717371045106,-500.0,0.00031131,4]
[328416426,1717371045116,-553.37,0.00031131,4]
[328416427,1717371045125,-413.159818,0.00031131,7]
[328416428,1717371045135,-500.0,0.00031131,4]
[328416429,1717371045147,-859.62,0.00031131,4]
[328416430,1717371045157,-500.0,0.00031131,4]
[328416431,1717371045166,-500.0,0.00031131,4]
[328416432,1717371045175,-500.0,0.00031131,4]
[328416433,1717371045185,-522.31742724,0.00031131,4]
[328416434,1717371045194,-500.0,0.00031131,4]
[328416435,1717371045204,-583.76583653,0.00031131,4]
[328416436,1717371045213,-500.0,0.00031131,4]
[328416437,1717371045223,-799.72,0.00031131,4]
[328416438,1717371045232,-151.0,0.00031131,7]
[328416439,1717371045242,-1125.65,0.00031131,4]
[328416440,1717371045251,-514.95,0.00031131,4]
[328416441,1717371045260,-500.0,0.00031131,4]
[328416442,1717371045270,-151.0,0.00031131,7]
[328416443,1717371045279,-500.0,0.00031131,4]
[328416444,1717371045289,-151.0,0.00031131,7]
[328416445,1717371045299,-7152.07,0.00031131,4]
[328416446,1717371045309,-151.0,0.00031131,7]
[328416447,1717371045319,-1737.83,0.00031131,4]
[328416448,1717371045328,-307.794907,0.00031131,7]
[328416449,1717371045338,-307.794907,0.00031131,7]
[328416450,1717371045347,-1275.64,0.00031131,4]
[328416451,1717371045358,-500.0,0.00031131,4]
[328416452,1717371045367,-221.380324,0.00031131,7]
[328416453,1717371045377,-221.380324,0.00031131,7]
[328416454,1717371045388,-151.0,0.00031131,7]
[328416455,1717371045397,-1193.61,0.00031131,4]
[328416456,1717371045407,-944.32,0.00031131,4]
[328416457,1717371045417,-152.531254,0.00031131,7]
[328416458,1717371045427,-508.82,0.00031131,4]
[328416459,1717371045437,-1901.92,0.00031131,4]
[328416460,1717371045448,-151.0,0.00031131,7]
[328416461,1717371045458,-152.531254,0.00031131,7]
[328416462,1717371045472,-500.0,0.00031131,4]
[328416463,1717371045482,-500.0,0.00031131,4]
[328416464,1717371045491,-2064.47,0.00031131,4]
[328416465,1717371045501,-1174.470906,0.00031131,7]
[328416466,1717371045510,-151.0,0.00031131,7]
[328416467,1717371045520,-500.0,0.00031131,4]
[328416468,1717371045530,-500.0,0.00031131,4]
[328416469,1717371045540,-500.0,0.00031131,4]
[328416470,1717371045550,-1245.2,0.00031131,4]
[328416471,1717371045560,-1174.470906,0.00031131,7]
[328416472,1717371045570,-500.0,0.00031131,4]
[328416473,1717371045581,-275.207606,0.00031131,7]
[328416474,1717371045597,-1601.21,0.00031131,4]
[328416475,1717371045607,-620.28,0.00031131,4]
[328416477,1717371045617,-500.0,0.00031131,4]
[328416480,1717371045627,-1827.81,0.00031131,4]
[328416482,1717371045637,-151.0,0.00031131,7]
[328416485,1717371045647,-500.0,0.00031131,4]
[328416486,1717371045656,-1608.46,0.00031131,4]
[328416488,1717371045668,-500.0,0.00031131,4]
[328416490,1717371045678,-336.737914,0.00031131,7]
[328416492,1717371045687,-500.0,0.00031131,4]
[328416494,1717371045696,-336.737914,0.00031131,7]
[328416496,1717371045706,-151.0,0.00031131,7]
[328416498,1717371045715,-500.0,0.00031131,4]
[328416500,1717371045725,-592.97,0.00031131,4]
[328416501,1717371045734,-151.0,0.00031131,7]
[328416502,1717371045743,-500.0,0.00031131,4]
[328416503,1717371045753,-751.49,0.00031131,4]
[328416504,1717371045762,-500.0,0.00031131,4]
[328416505,1717371045772,-500.0,0.00031131,4]
[328416506,1717371045782,-866.13,0.00031131,4]
[328416507,1717371045792,-500.0,0.00031131,4]
[328416508,1717371045802,-151.0,0.00031131,7]
[328416509,1717371045812,-500.0,0.00031131,4]
[328416510,1717371045821,-500.0,0.00031131,4]
[328416511,1717371045832,-500.0,0.00031131,4]
[328416512,1717371045841,-1306.76,0.00031131,4]
[328416513,1717371045851,-500.0,0.00031131,4]
[328416514,1717371045861,-500.0,0.00031131,4]
[328416515,1717371045870,-500.0,0.00031131,4]
[328416516,1717371045882,-1934.890911,0.00031131,7]
[328416517,1717371045892,-500.0,0.00031132,4]
[328416518,1717371045901,-500.0,0.00031132,4]
[328416519,1717371045911,-500.0,0.00031132,4]
[328416520,1717371045920,-500.0,0.00031132,4]
[328416521,1717371045930,-500.0,0.00031132,4]
[328416522,1717371045940,-500.0,0.00031132,4]
[328416523,1717371045950,-500.0,0.00031132,4]
[328416524,1717371045960,-500.0,0.00031132,4]
[328416525,1717371045970,-500.0,0.00031132,4]
[328416526,1717371045981,-500.0,0.00031132,4]
[328416527,1717371045991,-500.0,0.00031132,4]
[328416528,1717371046000,-500.0,0.00031132,4]
[328416529,1717371046010,-500.0,0.00031132,4]
[328416530,1717371046019,-500.0,0.00031132,4]
[328416531,1717371046029,-636.89715481,0.00031132,4]
[328416532,1717371046039,-384.10532547,0.00031132,4]
[328416533,1717371046049,-518.20483703,0.00031132,4]
[328416534,1717371046059,-517.81457958,0.00031132,4]
[328416535,1717371046068,-500.0,0.00031132,4]
[328416536,1717371046077,-573.17,0.00031132,4]
[328416537,1717371046086,-500.0,0.00031132,4]
[328416538,1717371046096,-500.0,0.00031132,4]
[328416539,1717371046245,-500.0,0.00031132,4]
[328416540,1717371046254,-500.0,0.00031132,4]
[328416541,1717371046264,-500.0,0.00031132,4]
[328416542,1717371046274,-500.0,0.00031132,4]
[328416543,1717371046284,-500.0,0.00031132,4]
[328416544,1717371046295,-500.0,0.00031132,4]
[328416545,1717371046305,-500.0,0.00031132,4]
[328416546,1717371046317,-500.0,0.00031132,4]
[328416547,1717371046328,-500.0,0.00031132,4]
[328416548,1717371046337,-500.0,0.00031132,4]
[328416549,1717371046347,-500.0,0.00031132,4]
[328416550,1717371046356,-500.0,0.00031132,4]
[328416551,1717371046367,-500.0,0.00031132,4]
[328416552,1717371046378,-500.0,0.00031132,4]
[328416553,1717371046387,-500.0,0.00031132,4]
[328416554,1717371046397,-500.0,0.00031132,4]
[328416555,1717371046406,-155.59465359,0.00031132,4]
[328416556,1717371046415,-500.0,0.00031132,4]
[328416557,1717371046425,-500.0,0.00031132,4]
[328416558,1717371046434,-500.0,0.00031132,4]
[328416559,1717371046444,-503.86139211,0.00031132,4]
[328416560,1717371046454,-510.71204527,0.00031132,4]
[328416561,1717371046463,-500.0,0.00031132,4]
[328416562,1717371046473,-500.0,0.00031132,4]
[328416563,1717371046482,-500.0,0.00031132,4]
[328416564,1717371046492,-500.0,0.00031132,4]
[328416565,1717371046502,-500.0,0.00031132,4]
[328416566,1717371046512,-500.0,0.00031132,4]
[328416567,1717371046522,-500.0,0.00031132,4]
[328416568,1717371046533,-500.0,0.00031132,4]
[328416569,1717371046542,-500.0,0.00031132,4]
[328416570,1717371046551,-150.0,0.00031132,4]
[328416571,1717371046561,-500.0,0.00031132,4]
[328416573,1717371046571,-500.0,0.00031132,4]
[328416574,1717371046581,-500.0,0.00031132,4]
[328416575,1717371046596,-500.0,0.00031132,4]
[328416576,1717371046605,-500.0,0.00031132,4]
[328416577,1717371046615,-500.0,0.00031132,4]
[328416578,1717371046624,-500.0,0.00031132,4]
[328416579,1717371046637,-500.0,0.00031132,4]
[328416580,1717371046646,-528.16227022,0.00031132,4]
[328416581,1717371046655,-500.0,0.00031132,4]
[328416582,1717371046666,-500.0,0.00031132,4]
[328416583,1717371046675,-500.0,0.00031132,4]
[328416584,1717371046684,-511.97652975,0.00031132,4]
[328416585,1717371046694,-512.0076384,0.00031132,4]
[328416586,1717371046703,-592.48372408,0.00031132,4]
[328416587,1717371046712,-518.272155,0.00031132,4]
[328416588,1717371046721,-500.0,0.00031132,4]
[328416589,1717371046730,-510.49449572,0.00031132,4]
[328416590,1717371046740,-599.18,0.00031132,4]
[328416591,1717371046749,-521.00485909,0.00031132,4]
[328416592,1717371046759,-389.60995916,0.00031132,4]
[328416593,1717371046768,-506.2723579,0.00031132,4]
[328416594,1717371046778,-495.28613779,0.00031132,4]
[328416595,1717371046788,-500.0,0.00031132,4]
[328416596,1717371046797,-500.0,0.00031132,4]
[328416597,1717371046807,-500.0,0.00031132,4]
[328416598,1717371046816,-500.0,0.00031132,4]
[328416599,1717371046825,-500.0,0.00031132,4]
[328416600,1717371046834,-500.0,0.00031132,4]
[328416601,1717371046843,-500.0,0.00031132,4]
[328416602,1717371046853,-513.9349637,0.00031132,4]
[328416603,1717371046862,-500.0,0.00031132,4]
[328416604,1717371046871,-500.0,0.00031132,4]
[328416605,1717371046882,-500.0,0.00031132,4]
[328416606,1717371046891,-500.0,0.00031132,4]
[328416607,1717371046900,-500.0,0.00031132,4]
[328416608,1717371046909,-500.0,0.00031132,4]
[328416609,1717371046918,-533.03614025,0.00031132,4]
[328416610,1717371046927,-500.0,0.00031132,4]
[328416611,1717371046937,-500.0,0.00031132,4]
[328416612,1717371046946,-582.7,0.00031132,4]
[328416613,1717371046955,-512.61013659,0.00031132,4]
[328416614,1717371046964,-500.0,0.00031132,4]
[328416615,1717371046973,-500.0,0.00031132,4]
[328416616,1717371046982,-500.0,0.00031132,4]
[328416617,1717371046995,-500.0,0.00031132,4]
[328416618,1717371047016,-520.02241211,0.00031132,4]
[328416619,1717371047033,-500.0,0.00031132,4]
[328416620,1717371047051,-500.0,0.00031132,4]
[328416621,1717371047072,-500.0,0.00031132,4]
[328416622,1717371047091,-516.00033398,0.00031132,4]
[328416623,1717371047108,-513.70386307,0.00031132,4]
[328416624,1717371047125,-500.0,0.00031132,4]
[328416625,1717371047139,-500.0,0.00031132,4]
[328416626,1717371047157,-500.0,0.00031132,4]
[328416627,1717371047176,-500.0,0.00031132,4]
[328416628,1717371047193,-500.0,0.00031132,4]
[328416629,1717371047206,-500.0,0.00031132,4]
[328416630,1717371047225,-500.0,0.00031132,4]
[328416631,1717371047238,-500.0,0.00031132,4]
[328416632,1717371047255,-500.0,0.00031132,4]
[328416633,1717371047269,-500.0,0.00031132,4]
[328416634,1717371047284,-700.2,0.00031132,4]
[328416635,1717371047299,-500.0,0.00031132,4]
[328416636,1717371047317,-515.51703885,0.00031132,4]
[328416637,1717371047332,-500.0,0.00031132,4]
[328416638,1717371047347,-500.0,0.00031132,4]
[328416639,1717371047362,-500.0,0.00031132,4]
[328416640,1717371047377,-500.0,0.00031132,4]
[328416641,1717371047392,-500.0,0.00031132,4]
[328416642,1717371047407,-500.0,0.00031132,4]
[328416643,1717371047422,-500.0,0.00031132,4]
[328416644,1717371047437,-500.0,0.00031132,4]
[328416645,1717371047453,-500.0,0.00031132,4]
[328416646,1717371047467,-500.0,0.00031132,4]
[328416647,1717371047483,-526.90327319,0.00031132,4]
[328416648,1717371047497,-500.0,0.00031132,4]
[328416649,1717371047512,-300.00882013,0.00031132,4]
[328416650,1717371047527,-500.0,0.00031132,4]
[328416651,1717371047541,-500.0,0.00031132,4]
[328416652,1717371047555,-615.25,0.00031132,4]
[328416653,1717371047571,-575.33089046,0.00031132,4]
[328416654,1717371047588,-504.71,0.00031132,4]
[328416655,1717371047603,-500.0,0.00031132,4]
[328416656,1717371047618,-500.0,0.00031132,4]
[328416657,1717371047634,-507.82274275,0.00031132,4]
[328416658,1717371047649,-500.0,0.00031132,4]
[328416659,1717371047664,-500.0,0.00031132,4]
[328416660,1717371047678,-511.76956347,0.00031132,4]
[328416661,1717371047692,-500.0,0.00031132,4]
[328416662,1717371047707,-500.0,0.00031132,4]
[328416663,1717371047723,-500.0,0.00031132,4]
[328416664,1717371047737,-573.97758711,0.00031132,4]
[328416665,1717371047752,-500.0,0.00031132,4]
[328416666,1717371047767,-500.0,0.00031132,4]
[328416667,1717371047782,-500.0,0.00031132,4]
[328416668,1717371047796,-511.63792515,0.00031132,4]
[328416669,1717371047811,-500.0,0.00031132,4]
[328416670,1717371047825,-597.94,0.00031132,4]
[328416671,1717371047840,-500.0,0.00031132,4]
[328416672,1717371047855,-500.0,0.00031132,4]
[328416673,1717371047870,-500.0,0.00031132,4]
[328416674,1717371047885,-510.9524884,0.00031132,4]
[328416675,1717371047901,-522.35985864,0.00031132,5]
[328416676,1717371047916,-500.0,0.00031132,4]
[328416677,1717371047931,-500.0,0.00031132,4]
[328416678,1717371047947,-538.44324866,0.00031132,4]
[328416679,1717371047963,-522.44376527,0.00031132,4]
[328416680,1717371047978,-500.0,0.00031132,4]
[328416681,1717371047993,-500.0,0.00031132,4]
[328416682,1717371048009,-500.0,0.00031132,4]
[328416683,1717371048024,-500.0,0.00031132,4]
[328416684,1717371048040,-500.0,0.00031132,4]
[328416685,1717371048054,-500.0,0.00031132,4]
[328416686,1717371048069,-500.0,0.00031132,4]
[328416687,1717371048083,-500.0,0.00031132,4]
[328416688,1717371048099,-500.0,0.00031132,4]
[328416689,1717371048114,-513.33643675,0.00031132,4]
[328416690,1717371048130,-500.0,0.00031132,4]
[328416691,1717371048143,-500.0,0.00031132,4]
[328416692,1717371048153,-500.0,0.00031132,4]
[328416693,1717371048162,-590.01,0.00031132,4]
[328416694,1717371048171,-514.0490114,0.00031132,4]
[328416695,1717371048357,-500.0,0.00031132,4]
[328416696,1717371048376,-500.0,0.00031132,4]
[328416697,1717371048386,-516.77366893,0.00031132,4]
[328416698,1717371048395,-500.0,0.00031132,4]
[328416699,1717371048405,-500.0,0.00031132,4]
[328416700,1717371048414,-500.0,0.00031132,4]
[328416701,1717371048424,-500.0,0.00031132,4]
[328416702,1717371048434,-500.0,0.00031132,4]
[328416703,1717371048443,-500.0,0.00031132,4]
[328416704,1717371048452,-528.87442362,0.00031132,4]
[328416705,1717371048461,-500.0,0.00031132,4]
[328416706,1717371048471,-511.56874871,0.00031132,4]
[328416707,1717371048481,-500.0,0.00031132,4]
[328416708,1717371048490,-500.0,0.00031132,4]
[328416709,1717371048499,-500.0,0.00031132,4]
[328416710,1717371048510,-500.0,0.00031132,4]
[328416711,1717371048519,-500.0,0.00031132,4]